Workbook

Sheet Лист1
B1: Наименование ОУ | C1: Ф.И.О. | D1: Образование | E1: Название кружка | F1: Направление обучения | G1: На сколько лет расчитана программа кружка | H1: Какой год обучается группа | I1: Год обучения | J1: Планируемая наполняемость группы | K1: Наполняемость группы | L1: Количество вакантных мест для приёма (перевода) за счёт бюджетных ассигнований федерального бюджета | M1: Количество вакантных мест для приёма (перевода) за счёт бюджетных ассигнований бюджетов субъекта Российской Федерации | N1: Количество вакантных мест для приёма (перевода) за счёт бюджетных ассигнований местных бюджетов | O1: Количество вакантных мест для приёма (перевода) за счёт средств физических и (или) юридических лиц
A2: 1 | B2: МБОУ Кривоозерская сош” | C2: Королев Владимир Викторович | D2: ср.сп | E2: Шашки, шахматы | F2: ФС | H2: 1 | I2: 1 | J2: =IF(I2=1,15,IF(I2=2,12,IF(I2=3,10))) -> 15 | K2: 15 | L2: 0 | M2: 0 | N2: 0 | O2: 0
A3: 2 | B3: МБОУ Кривоозерская сош” | C3: Голованова Татьяна Александровна | D3: высш | E3: ЮИД | F3: СП | G3: 3 | H3: 1 | I3: 1 | J3: 15 | K3: 15 | L3: 0 | M3: 0 | N3: 0 | O3: 0
A4: 3 | B4: МБОУ Кривоозерская сош” | C4: Купцова Наталия Геннадьевна | D4: высш. | E4: краеведение | F4: ТК | G4: 1 | H4: 1 | I4: 1 | J4: 15 | K4: 15 | L4: 0 | M4: 0 | N4: 0 | O4: 0
I5: Всего | J5: =SUM(J2:J4) -> 45 | K5: =SUM(K2:K4) -> 45
A7: 1 | B7: МБОУ “Новодемкинская сош” | C7: Валиулин Джавдат Асхатович | D7: высш | E7: Юн.умелец | F7: ТТ | G7: 2 | H7: 1 | I7: 2 | J7: =IF(I7=1,15,IF(I7=2,12,IF(I7=3,10))) -> 12 | K7: 15 | L7: 0 | M7: 0 | N7: 0 | O7: 0
A8: 2 | B8: МБОУ “Новодемкинская сош” | C8: Абрарова Лилия Табрисовна | D8: высш | E8: ЮИД | F8: СП | G8: 3 | H8: 1 | I8: 1 | J8: 15 | K8: 15 | L8: 0 | M8: 0 | N8: 0 | O8: 0
I9: Всего | J9: =SUM(J8:J8) -> 15 | K9: =SUM(K7:K8) -> 30
A11: 1 | B11: МБОУ Староибрайкинкая сош” | C11: Сафиуллина Якуба Гумеровича | D11: ср/спец | E11: Юный изобретатель | F11: ТТ | G11: 3 | H11: 1 | I11: 2 | J11: 12 | K11: 15 | L11: 0 | M11: 0 | N11: 0 | O11: 0
A12: 2 | B12: МБОУ Староибрайкинкая сош” | C12: Хузин Айдар Тагирзянович | D12: ср/спец | E12: Начальное техническое моделирование | F12: ТТ | G12: 3 | H12: 1 | I12: 1 | J12: 15 | K12: 15 | L12: 0 | M12: 0 | N12: 0 | O12: 0
A13: 3 | B13: МБОУ Староибрайкинкая сош” | C13: Бикушева Раиса Харисовича | D13: высш | E13: волейбол | F13: ФС | G13: 3 | H13: 1 | I13: 1 | J13: 15 | K13: 15 | L13: 0 | M13: 0 | N13: 0 | O13: 0
A14: 4 | B14: МБОУ Староибрайкинкая сош” | C14: Залалтдинова Флера Минсалиховна | D14: высш | E14: юный химик | F14: ЕН | G14: 3 | H14: 2 | I14: 3 | J14: 10 | K14: 15 | L14: 0 | M14: 0 | N14: 0 | O14: 0
A15: 5 | B15: МБОУ Староибрайкинкая сош” | C15: Ярмухаметова Руфия Вазыховна | D15: высш | E15: краеведение | F15: ТК | G15: 3 | H15: 1 | I15: 2 | J15: 12 | K15: 15 | L15: 0 | M15: 0 | N15: 0 | O15: 0
A16: 6 | B16: МБОУ Староибрайкинкая сош” | C16: Хайруллина Зульфира Вализановна | D16: высш | E16: юный грамотей | F16: СП | G16: 3 | H16: 2 | I16: 2 | J16: 12 | K16: 15 | L16: 0 | M16: 0 | N16: 0 | O16: 0
A17: 7 | B17: МБОУ Староибрайкинкая сош” | C17: Бикушева Раиса Харисовича | D17: высш | E17: туризм | F17: ТК | G17: 3 | H17: 1 | I17: 1 | J17: 15 | K17: 15 | L17: 0 | M17: 0 | N17: 0 | O17: 0
A18: 8 | B18: МБОУ Староибрайкинкая сош” | C18: Батдалова Илюза Ринатовна | D18: высш | E18: клуб Пифагора | F18: СП | G18: 3 | H18: 2 | I18: 1 | J18: 15 | K18: 15 | L18: 0 | M18: 0 | N18: 0 | O18: 0
A19: 9 | B19: МБОУ Староибрайкинкая сош” | C19: Хуснулгатина Лейсан Минахметовна | D19: высш | E19: ЮИД | F19: СП | G19: 3 | H19: 1 | I19: 2 | J19: 12 | K19: 15 | L19: 0 | M19: 0 | N19: 0 | O19: 0
A20: 10 | B20: МБОУ Староибрайкинкая сош” | C20: Минигулова Лилия Минасхатовна | D20: высш | E20: Страна мастериц | F20: ТТ | G20: 3 | H20: 2 | I20: 2 | J20: 12 | K20: 15 | L20: 0 | M20: 0 | N20: 0 | O20: 0
I21: Всего | J21: =SUM(J11:J20) -> 130 | K21: =SUM(K11:K20) -> 150
A23: 1 | B23: МБОУ “Карасинская ош ” | C23: Минхайдарова Гульнара Кучкаралиевна | D23: высш | E23: ЮИД | F23: СП | G23: 3 | H23: 1 | I23: 1 | J23: 15 | K23: 15 | L23: 0 | M23: 0 | N23: 0 | O23: 0
I24: Всего | J24: =SUM(J23:J23) -> 15 | K24: =SUM(K23:K23) -> 15
A26: 1 | B26: МБОУ "Новоибрайкинская сош ” | C26: Мутигуллина Шамиль Нургалиевич | D26: ср/спец | E26: баскетбол | F26: ФС | G26: 2 | H26: 2 | I26: 2 | J26: 12 | K26: 15 | L26: 0 | M26: 0 | N26: 0 | O26: 0
A27: 2 | B27: МБОУ Новоибрайкинская сош ” | C27: Гильмутдинова Рузалия Разяповна | D27: высш | E27: ЮИД | F27: СП | G27: 3 | H27: 1 | I27: 1 | J27: 15 | K27: 15 | L27: 0 | M27: 0 | N27: 0 | O27: 0
A28: 3 | B28: МБОУ Новоибрайкинская сош ” | C28: Мотыгуллин Ринат Нургалиевич | D28: высш | E28: Умелые руки | F28: ТТ | G28: 1 | H28: 1 | I28: 1 | J28: 15 | K28: 15 | L28: 0 | M28: 0 | N28: 0 | O28: 0
I29: Всего | J29: =SUM(J26:J28) -> 42 | K29: =SUM(K26:K28) -> 45
A31: 1 | B31: МБОУ Новотимошкинская сош” | C31: Сандимирова Николая Михайловича | D31: высш | E31: сыны Отечества; | F31: ВП | G31: 3 | H31: 3 | I31: 3 | J31: 10 | K31: 15 | L31: 0 | M31: 0 | N31: 0 | O31: 0
A32: 2 | B32: МБОУ Новотимошкинская сош” | C32: Ямукову Ольгу Анатольевну | D32: высш | F32: ХЭ | G32: 3 | H32: 1 | I32: 1 | J32: 15 | K32: 15 | L32: 0 | M32: 0 | N32: 0 | O32: 0
I33: Всего | J33: =SUM(J31:J32) -> 25 | K33: =SUM(K31:K32) -> 30
A35: 1 | B35: МБОУ Старомокшинская сош ” | C35: Гайнуллин Фархат Габдуллович | D35: высш | E35: баскетбол(м) | F35: ФС | G35: 2 | H35: 2 | I35: 1 | J35: 15 | K35: 15 | L35: 0 | M35: 0 | N35: 0 | O35: 0
A36: 2 | B36: МБОУ Старомокшинская сош ” | C36: Михайлова Валентина Михайловна | D36: высш | E36: Я и компьютер | F36: ТТ | G36: 1 | H36: 2 | I36: 1 | J36: 15 | K36: 15 | L36: 0 | M36: 0 | N36: 0 | O36: 0
A37: 3 | B37: МБОУ Старомокшинская сош ” | C37: Шарафутдинову Гузель Фасхетдиновну | D37: высш | E37: Сандугачкай | F37: ХЭ | G37: 3 | H37: 2 | I37: 1 | J37: 15 | K37: 15 | L37: 0 | M37: 0 | N37: 0 | O37: 0
A38: 4 | B38: МБОУ Старомокшинская сош ” | C38: Андриянова Ольга Евгеньевна | D38: высш | F38: ХЭ | G38: 1 | H38: 2 | I38: 1 | J38: 15 | K38: 15 | L38: 0 | M38: 0 | N38: 0 | O38: 0
A39: 5 | B39: МБОУ Старомокшинская сош ” | C39: Зайцева Галина Геннадьевна | D39: высш | E39: В мире научных открытий | F39: СП | G39: 1 | H39: 2 | I39: 1 | J39: 15 | K39: 15 | L39: 0 | M39: 0 | N39: 0 | O39: 0
A40: 6 | B40: МБОУ Старомокшинская сош ” | C40: Бикулов Марс Паймурзович | D40: высш | E40: Агрокласс | F40: ЕН | G40: 1 | H40: 2 | I40: 1 | J40: 15 | K40: 15 | L40: 0 | M40: 0 | N40: 0 | O40: 0
A41: 7 | B41: МБОУ Старомокшинская сош ” | C41: Сухалова Лилия Ринатовна | D41: высш | E41: ЮИД | F41: СП | H41: 1 | I41: 1 | J41: 15 | K41: 15 | L41: 0 | M41: 0 | N41: 0 | O41: 0
A42: 8 | B42: МБОУ Старомокшинская сош ” | C42: Мифтахова Гульназ Зиннуровна | D42: высш | E42: Рукодельница | F42: ХЭ | G42: 3 | H42: 2 | I42: 2 | J42: 12 | K42: 15 | L42: 0 | M42: 0 | N42: 0 | O42: 0
I43: Всего | J43: =SUM(J35:J42) -> 117 | K43: =SUM(K35:K42) -> 120
A45: 1 | B45: МБОУ Старотимошкинская сш” | C45: Чугунова Надежда Евлампьевна | D45: Ср. спец | E45: ЮИД | F45: СП | G45: 3 | H45: 2 | I45: 3 | J45: 10 | K45: 15 | L45: 0 | M45: 0 | N45: 0 | O45: 0
A46: 2 | B46: МБОУ Старотимошкинская сш” | C46: Мулеев Владислав Михайлович | D46: высшее | E46: Бадминтон | F46: ФС | G46: 3 | H46: 1 | I46: 3 | J46: 10 | K46: 15 | L46: 0 | M46: 0 | N46: 0 | O46: 0
A47: 3 | B47: МБОУ Старотимошкинская сш” | C47: Яшмурзина Наталья Владимировна | D47: высшее | E47: умелые руки | F47: ХЭ | G47: 3 | H47: 1 | I47: 1 | J47: 15 | K47: 15 | L47: 0 | M47: 0 | N47: 0 | O47: 0
A48: 4 | B48: МБОУ Старотимошкинская сш” | C48: Мелентьева Светлана Сергеевна | D48: высшее | E48: робототехника | F48: ТТ | G48: 3 | H48: 1 | I48: 1 | J48: 15 | K48: 15 | L48: 0 | M48: 0 | N48: 0 | O48: 0
A49: 5 | B49: МБОУ Старотимошкинская сш” | C49: Чугунов Василий Аркадьевич | D49: высшее | E49: баскетбол | F49: ФС | G49: 3 | H49: 1 | I49: 2 | J49: 12 | K49: 15 | L49: 0 | M49: 0 | N49: 0 | O49: 0
A50: 6 | B50: МБОУ Старотимошкинская сш” | C50: Чугунов Василий Аркадьевич | D50: высшее | E50: Юный спасатель | F50: ВП | G50: 1 | H50: 1 | I50: 1 | J50: =IF(I50=1,15,IF(I50=2,12,IF(I50=3,10))) -> 15 | K50: 15 | L50: 0 | M50: 0 | N50: 0 | O50: 0
A51: 8 | B51: МБОУ Старотимошкинская сш” | C51: Пименова Альбина Васильевна | D51: высшее | E51: Светлячок | F51: ХЭ | G51: 3 | H51: 1 | I51: 2 | J51: =IF(I51=1,15,IF(I51=2,12,IF(I51=3,10))) -> 12 | K51: 15 | L51: 0 | M51: 0 | N51: 0 | O51: 0
A52: 9 | B52: МБОУ Старотимошкинская сш” | C52: Патмаев Владимир Васильевич | D52: ср/спец | E52: Автомоделирование | F52: ТТ | G52: 2 | H52: 2 | I52: 2 | J52: =IF(I52=1,15,IF(I52=2,12,IF(I52=3,10))) -> 12 | K52: 15 | L52: 0 | M52: 0 | N52: 0 | O52: 0
I53: Всего | J53: =SUM(J45:J52) -> 101 | K53: =SUM(K45:K52) -> 120
A55: 1 | B55: МБОУ Сунчелеевская сош ” | C55: Степанова Надежда Юрьевна | D55: высш. | E55: Волейбол | F55: ФС | G55: 3 | H55: 1 | I55: 2 | J55: =IF(I55=1,15,IF(I55=2,12,IF(I55=3,10))) -> 12 | K55: 15 | L55: 0 | M55: 0 | N55: 0 | O55: 0
A56: 2 | B56: МБОУ Сунчелеевская сош ” | C56: Карпаева Алевтина Николаевна | D56: высш | E56: Театральное исскуство | F56: ХЭ | G56: 3 | H56: 1 | I56: 1 | J56: =IF(I56=1,15,IF(I56=2,12,IF(I56=3,10))) -> 15 | K56: 15 | L56: 0 | M56: 0 | N56: 0 | O56: 0
A57: 3 | B57: МБОУ Сунчелеевская сош ” | C57: Калукова Валентина Викторовна | D57: высш | E57: юннат | F57: ЭБ | G57: 3 | H57: 1 | I57: 3 | J57: =IF(I57=1,15,IF(I57=2,12,IF(I57=3,10))) -> 10 | K57: 15 | L57: 0 | M57: 0 | N57: 0 | O57: 0
A58: 4 | B58: МБОУ Сунчелеевская сош ” | C58: Воркунов Вячеслав Иосифович | D58: высш | E58: Баскетбол | F58: ФС | G58: 3 | H58: 1 | I58: 3 | J58: =IF(I58=1,15,IF(I58=2,12,IF(I58=3,10))) -> 10 | K58: 15 | L58: 0 | M58: 0 | N58: 0 | O58: 0
A59: 5 | B59: МБОУ Сунчелеевская сош ” | C59: Калуков Алексея Владимировича | D59: высш | E59: ЮИД | F59: СП | G59: 3 | H59: 1 | I59: 1 | J59: =IF(I59=1,15,IF(I59=2,12,IF(I59=3,10))) -> 15 | K59: 15 | L59: 0 | M59: 0 | N59: 0 | O59: 0
I60: Всего | J60: =SUM(J55:J59) -> 62 | K60: =SUM(K55:K59) -> 75
A62: 1 | B62: МБОУ “Аксубаевская сош №3” | C62: Голованова Светлана Васильевна | D62: ср/спец | E62: прикладное искусство | F62: ТТ | G62: 3 | H62: 1 | I62: 1 | J62: =IF(I62=1,15,IF(I62=2,12,IF(I62=3,10))) -> 15 | K62: 15 | L62: 0 | M62: 0 | N62: 0 | O62: 0
A63: 2 | B63: МБОУ “Аксубаевская сош №3” | C63: Голованова Светлана Васильевна | D63: ср/спец | E63: прикладное искусство | F63: ТТ | G63: 3 | H63: 1 | I63: 3 | J63: 10 | K63: 15 | L63: 0 | M63: 0 | N63: 0 | O63: 0
A64: 3 | B64: МБОУ “Аксубаевская сош №3” | C64: Гаврилов Михаил Петрович | D64: высш | E64: Обществовед | F64: СП | G64: 3 | H64: 1 | I64: 1 | J64: 15 | K64: 15 | L64: 0 | M64: 0 | N64: 0 | O64: 0
A65: 4 | B65: МБОУ “Аксубаевская сош №3” | C65: Кандалина Людмила Геннадьевна | D65: высш | E65: Занимательный английский | F65: СП | G65: 3 | H65: 1 | I65: 2 | J65: 12 | K65: 15 | L65: 0 | M65: 0 | N65: 0 | O65: 0
A66: 5 | B66: МБОУ “Аксубаевская сош №3” | C66: Шихранову Зою Петровну | D66: высш | E66: Бадминтон | F66: ФС | G66: 3 | H66: 1 | I66: 1 | J66: 15 | K66: 15 | L66: 0 | M66: 0 | N66: 0 | O66: 0
A67: 6 | B67: МБОУ “Аксубаевская сош №3” | C67: Шихранову Зою Петровну | D67: высш | E67: Волейбол | F67: ФС | G67: 3 | H67: 1 | I67: 2 | J67: 12 | K67: 15 | L67: 0 | M67: 0 | N67: 0 | O67: 0
A68: 7 | B68: МБОУ “Аксубаевская сош №3” | C68: Дружкова Любовь Анатольевна | D68: высш | E68: Дорожный патруль | F68: СП | G68: 3 | H68: 1 | I68: 2 | J68: 12 | K68: 15 | L68: 0 | M68: 0 | N68: 0 | O68: 0
A69: 8 | B69: МБОУ “Аксубаевская сош №3” | C69: Зайнуллина Лилия Альбертовна | D69: высш | E69: Школа конструирования | F69: ТТ | H69: 1 | I69: 1 | J69: 15 | K69: 15 | L69: 0 | M69: 0 | N69: 0 | O69: 0
A70: 9 | B70: МБОУ “Аксубаевская сош №3” | C70: Громову Ольгу Петровну | D70: высш | E70: Веселые краски | F70: ХЭ | G70: 4 | H70: 1 | I70: 2 | J70: 12 | K70: 15 | L70: 0 | M70: 0 | N70: 0 | O70: 0
A71: 10 | B71: МБОУ “Аксубаевская сош №3” | C71: Таиркину Галину Николаевну | D71: высш | E71: Экологическая азбука | F71: ЭБ | G71: 4 | H71: 1 | I71: 2 | J71: 12 | K71: 15 | L71: 0 | M71: 0 | N71: 0 | O71: 0
A72: 11 | B72: МБОУ “Аксубаевская сош №3” | C72: Газизова Айгуль Базарбаевна | D72: высш | E72: ТЗБ.вопросы рус.языка | F72: СП | G72: 1 | H72: 1 | I72: 1 | J72: 15 | K72: 15 | L72: 0 | M72: 0 | N72: 0 | O72: 0
A73: 12 | B73: МБОУ “Аксубаевская сош №3” | C73: Удиярова Татьяна Георгиевна | D73: высш | E73: Край родной мой | F73: ТК | G73: 2 | H73: 1 | I73: 2 | J73: 12 | K73: 15 | L73: 0 | M73: 0 | N73: 0 | O73: 0
A74: 13 | B74: МБОУ “Аксубаевская сош №3” | C74: Купорова Наталья Николаевна | D74: высш | E74: юный физик | F74: ЕН | G74: 2 | H74: 1 | I74: 2 | J74: 12 | K74: 15 | L74: 0 | M74: 0 | N74: 0 | O74: 0
A75: 14 | B75: МБОУ “Аксубаевская сош №3” | C75: Козлова Зинаида Аркадьевна | D75: высш | E75: юный химик | F75: ЕН | G75: 2 | H75: 1 | I75: 2 | J75: 12 | K75: 15 | L75: 0 | M75: 0 | N75: 0 | O75: 0
A76: 15 | B76: МБОУ “Аксубаевская сош №3” | C76: Макаров Юрий Никитович | D76: высш | E76: юный патриот | F76: ВП | G76: 2 | H76: 2 | I76: 1 | J76: 15 | K76: 15 | L76: 0 | M76: 0 | N76: 0 | O76: 0
A77: 16 | B77: МБОУ “Аксубаевская сош №3” | C77: Водышеву Людмилу Николаевну | D77: ысш | E77: юный натуралист (1 группа) | F77: ЭБ | G77: 3 | H77: 1 | I77: 3 | J77: =IF(I77=1,15,IF(I77=2,12,IF(I77=3,10))) -> 10 | K77: 15 | L77: 0 | M77: 0 | N77: 0 | O77: 0
A78: 17 | B78: МБОУ “Аксубаевская сош №3” | C78: Водышеву Людмилу Николаевну | D78: ысш | E78: юный натуралист (2 группа) | F78: ЭБ | G78: 3 | H78: 1 | I78: 2 | J78: 12 | K78: 15 | L78: 0 | M78: 0 | N78: 0 | O78: 0
A79: 18 | B79: МБОУ “Аксубаевская сош №3” | C79: Пензенцева Екатерина Ивановна | D79: высш | E79: Занимательная геология | F79: СП | G79: 1 | H79: 1 | I79: 1 | J79: 15 | K79: 15 | L79: 0 | M79: 0 | N79: 0 | O79: 0
A80: 19 | B80: МБОУ “Аксубаевская сош №3” | C80: Семенова Татьяна Анатольевна | E80: Калейдоскоп (псих) | F80: СП | G80: 3 | H80: 2 | I80: 2 | J80: 12 | K80: 15 | L80: 0 | M80: 0 | N80: 0 | O80: 0
A81: 20 | B81: МБОУ “Аксубаевская сош №3” | C81: Муратшина Рушания Абдрахмановна | D81: высш | E81: Народная жемчужина | F81: СП | G81: 3 | H81: 1 | I81: 3 | J81: 10 | K81: 15 | L81: 0 | M81: 0 | N81: 0 | O81: 0
A82: 21 | B82: МБОУ “Аксубаевская сош №3” | C82: Рябова Надежда Васильевна | E82: Разноцветный английский | F82: СП | G82: 2 | H82: 2 | I82: 1 | J82: 15 | K82: 15 | L82: 0 | M82: 0 | N82: 0 | O82: 0
A83: 22 | B83: МБОУ “Аксубаевская сош №3” | C83: Канафин Радик Касымович | D83: высш | E83: Баскетбол | F83: ФС | G83: 3 | H83: 1 | I83: 1 | J83: =IF(I83=1,15,IF(I83=2,12,IF(I83=3,10))) -> 15 | K83: 15 | L83: 0 | M83: 0 | N83: 0 | O83: 0
A84: 23 | B84: МБОУ “Аксубаевская сош №3” | C84: Маркова Анна Григорьевна | D84: высш | E84: Театр | F84: ХЭ | G84: 3 | H84: 1 | I84: 1 | J84: 15 | K84: 15 | L84: 0 | M84: 0 | N84: 0 | O84: 0
A85: 24 | B85: МБОУ “Аксубаевская сош №3” | C85: Горбунов Геннадий Валерьевич | D85: высш | E85: Шашки, шахматы | F85: ФС | G85: 2 | H85: 1 | I85: 1 | J85: 15 | K85: 15 | L85: 0 | M85: 0 | N85: 0 | O85: 0
I86: Всего | J86: =SUM(J62:J85) -> 315 | K86: =SUM(K62:K85) -> 360
A88: 1 | B88: МБОУ Аксубаевская сош №2” | C88: Вафину Флеру Вазыховну | D88: высш | E88: абитур.(рус.яз) | F88: СП | G88: 2 | H88: 2 | I88: 1 | J88: =IF(I88=1,15,IF(I88=2,12,IF(I88=3,10))) -> 15 | K88: 15 | L88: 0 | M88: 0 | N88: 0 | O88: 0
A89: 2 | B89: МБОУ Аксубаевская сош №2” | C89: Буинский Алексей Валерьевич | D89: высш | E89: Баскетбол | F89: ФС | G89: 3 | H89: 2 | I89: 2 | J89: 12 | K89: 15 | L89: 0 | M89: 0 | N89: 0 | O89: 0
A90: 3 | B90: МБОУ Аксубаевская сош №2” | C90: Буинский Алексей Валерьевич | D90: высш | E90: Настольный теннис | F90: ФС | G90: 3 | H90: 2 | I90: 1 | J90: 15 | K90: 15 | L90: 0 | M90: 0 | N90: 0 | O90: 0
A91: 4 | B91: МБОУ Аксубаевская сош №2” | C91: Горбунова Геннадия Валерьевича | D91: высш | E91: клио | F91: СП | G91: 3 | H91: 3 | I91: 3 | J91: 10 | K91: 15 | L91: 0 | M91: 0 | N91: 0 | O91: 0
A92: 5 | B92: МБОУ Аксубаевская сош №2” | C92: Удиярову Татьяну Валерьяновну | D92: высш | E92: память | F92: СП | G92: 2 | H92: 1 | I92: 1 | J92: 15 | K92: 15 | L92: 0 | M92: 0 | N92: 0 | O92: 0
A93: 6 | B93: МБОУ Аксубаевская сош №2” | C93: Башатова Светлана Владимировна | D93: ср/спец | E93: веселые нотки | F93: ХЭ | G93: 4 | H93: 2 | I93: 3 | J93: 10 | K93: 15 | L93: 0 | M93: 0 | N93: 0 | O93: 0
A94: 7 | B94: МБОУ Аксубаевская сош №2” | C94: Шуркина Аэлита Викторовна | D94: высш | E94: ЮИД | F94: СП | G94: 3 | H94: 2 | I94: 3 | J94: 10 | K94: 15 | L94: 0 | M94: 0 | N94: 0 | O94: 0
A95: 8 | B95: МБОУ Аксубаевская сош №2” | C95: Ванюкову Светлану Александровну | D95: высш | E95: юный физик | F95: ЕН | G95: 2 | H95: 1 | I95: 2 | J95: 12 | K95: 15 | L95: 0 | M95: 0 | N95: 0 | O95: 0
A96: 9 | B96: МБОУ Аксубаевская сош №2” | C96: Миронкин Вячеслав Алексеевич | D96: высш | E96: Логомир | F96: ТТ | G96: 1 | H96: 1 | I96: 1 | J96: 15 | K96: 15 | L96: 0 | M96: 0 | N96: 0 | O96: 0
A97: 10 | B97: МБОУ Аксубаевская сош №2” | C97: Аюханова Гульнара Раилевна | D97: высш | E97: умелые руки | F97: ТТ | G97: 2 | H97: 1 | I97: 1 | J97: 15 | K97: 15 | L97: 0 | M97: 0 | N97: 0 | O97: 0
A98: 11 | B98: МБОУ Аксубаевская сош №2” | C98: Панюкова Надежда Николаевна | D98: высш | E98: школа юных лесоводов | F98: ЭБ | G98: 2 | H98: 1 | I98: 2 | J98: 12 | K98: 15 | L98: 0 | M98: 0 | N98: 0 | O98: 0
A99: 12 | B99: МБОУ Аксубаевская сош №2” | C99: Пименова Наталья Владимировна | E99: Ритмика и танец | F99: ХЭ | G99: 4 | H99: 1 | I99: 3 | J99: 10 | K99: 15 | L99: 0 | M99: 0 | N99: 0 | O99: 0
A100: 13 | B100: МБОУ Аксубаевская сош №2” | C100: Львову Елену Николаевну | D100: высш | E100: эрудит | F100: СП | G100: 2 | H100: 2 | I100: 1 | J100: 15 | K100: 15 | L100: 0 | M100: 0 | N100: 0 | O100: 0
A101: 14 | B101: МБОУ Аксубаевская сош №2” | C101: Шуркина Аэлита Викторовна | D101: высш | E101: Фантазия | F101: ХЭ | G101: 3 | H101: 2 | I101: 3 | J101: 10 | K101: 15 | L101: 0 | M101: 0 | N101: 0 | O101: 0
A102: 15 | B102: МБОУ Аксубаевская сош №2” | C102: Никитин Николай Алексеевич | E102: Бадминтон | F102: ФС | G102: 3 | H102: 2 | I102: 3 | J102: 10 | K102: 15 | L102: 0 | M102: 0 | N102: 0 | O102: 0
A103: 16 | B103: МБОУ Аксубаевская сош №2” | C103: Мясникова Лилия Валентиновна | E103: Школьный тэатр | F103: ХЭ | G103: 1 | H103: 2 | I103: 1 | J103: =IF(I103=1,15,IF(I103=2,12,IF(I103=3,10))) -> 15 | K103: 15 | L103: 0 | M103: 0 | N103: 0 | O103: 0
A104: 17 | B104: МБОУ Аксубаевская сош №2” | C104: Горбунов Геннадий Валерьевич | D104: высш | E104: белая ладья | F104: ФС | G104: 2 | H104: 3 | I104: 1 | J104: 15 | K104: 15 | L104: 0 | M104: 0 | N104: 0 | O104: 0
I105: Всего | J105: =SUM(J88:J104) -> 216 | K105: =SUM(K88:K104) -> 255
A107: 1 | B107: МБОУ “Аксубаевский лицей” | C107: Павлова Валерия Мироновича | D107: высш | E107: Волейбол | F107: ФС | G107: 3 | H107: 2 | I107: 2 | J107: =IF(I107=1,15,IF(I107=2,12,IF(I107=3,10))) -> 12 | K107: 15 | L107: 0 | M107: 0 | N107: 0 | O107: 0
A108: 2 | B108: МБОУ “Аксубаевский лицей” | C108: Калимуллин Саяр Газинурович | D108: высш | E108: Волейбол | F108: ФС | G108: 3 | H108: 3 | I108: 1 | J108: =IF(I108=1,15,IF(I108=2,12,IF(I108=3,10))) -> 15 | K108: 15 | L108: 0 | M108: 0 | N108: 0 | O108: 0
A109: 3 | B109: МБОУ “Аксубаевский лицей” | C109: Калимуллин Саяр Газинурович | D109: высш | E109: Волейбол | F109: ФС | G109: 3 | H109: 3 | I109: 2 | J109: =IF(I109=1,15,IF(I109=2,12,IF(I109=3,10))) -> 12 | K109: 15 | L109: 0 | M109: 0 | N109: 0 | O109: 0
A110: 4 | B110: МБОУ “Аксубаевский лицей” | C110: Чернышева Анастасия Сергеевна | D110: высш | E110: Театральная студия Премьера | F110: ХЭ | G110: 3 | H110: 1 | I110: 1 | J110: =IF(I110=1,15,IF(I110=2,12,IF(I110=3,10))) -> 15 | K110: 15 | L110: 0 | M110: 0 | N110: 0 | O110: 0
A111: 5 | B111: МБОУ “Аксубаевский лицей” | C111: Петрова Анастасия Сергеевна | D111: высш | E111: ориент | F111: ВП | G111: 3 | H111: 1 | I111: 1 | J111: =IF(I111=1,15,IF(I111=2,12,IF(I111=3,10))) -> 15 | K111: 15 | L111: 0 | M111: 0 | N111: 0 | O111: 0
A112: 6 | B112: МБОУ “Аксубаевский лицей” | C112: Архипова Ольга Аркадьевна | D112: высш | E112: Живое перо | F112: СП | G112: 3 | H112: 1 | I112: 1 | J112: 15 | K112: 15 | L112: 0 | M112: 0 | N112: 0 | O112: 0
A113: 7 | B113: МБОУ “Аксубаевский лицей” | C113: Мясникова Инара Фазыловна | D113: высш | E113: ЮИД | F113: СП | G113: 3 | H113: 1 | I113: 2 | J113: 12 | K113: 15 | L113: 0 | M113: 0 | N113: 0 | O113: 0
A114: 8 | B114: МБОУ “Аксубаевский лицей” | C114: Карпова Татьяна Семеновна | D114: высш | E114: Шахматы | F114: ФС | G114: 2 | H114: 1 | I114: 1 | J114: 15 | K114: 15 | L114: 0 | M114: 0 | N114: 0 | O114: 0
A115: 9 | B115: МБОУ “Аксубаевский лицей” | C115: Пахомова Светлана Виторовна | D115: высш | E115: Хатер (память) | F115: ТК | G115: 1 | H115: 1 | I115: 1 | J115: 15 | K115: 15 | L115: 0 | M115: 0 | N115: 0 | O115: 0
A116: 10 | B116: МБОУ “Аксубаевский лицей” | C116: Мингалиев Алид Самигуллович | D116: высш | E116: Робототехника | F116: ТТ | I116: 1 | J116: 15 | K116: 15 | L116: 0 | M116: 0 | N116: 0 | O116: 0
A117: 11 | B117: МБОУ “Аксубаевский лицей” | C117: Сударев Алексей Михайлович | D117: высш | E117: Байтик | F117: ТТ | G117: 1 | I117: 1 | J117: 15 | K117: 15 | L117: 0 | M117: 0 | N117: 0 | O117: 0
A118: 12 | B118: МБОУ “Аксубаевский лицей” | C118: Калимуллина Елена Александровна | D118: высш | E118: умелые руки | F118: ТТ | G118: 3 | H118: 2 | I118: 2 | J118: 12 | K118: 15 | L118: 0 | M118: 0 | N118: 0 | O118: 0
I119: Всего | J119: =SUM(J107:J118) -> 168 | K119: =SUM(K107:K118) -> 180
A121: 1 | B121: МБОУ Староильдеряковская сш” | C121: Николаев Юрий Иванович | D121: ср/спец | E121: туризм | F121: ТК | G121: 3 | H121: 3 | I121: 3 | J121: 10 | K121: 15 | L121: 0 | M121: 0 | N121: 0 | O121: 0
A122: 2 | B122: МБОУ Староильдеряковская сш” | C122: Зольникова Елена Валимировна | D122: ср/спец | E122: Занимательное конструирование | F122: ТТ | G122: 3 | H122: 2 | I122: 3 | J122: 10 | K122: 15 | L122: 0 | M122: 0 | N122: 0 | O122: 0
A123: 3 | B123: МБОУ Староильдеряковская сш” | C123: Альметкину Светлану Викторовну | D123: высш | E123: краеведение | F123: ТК | G123: 3 | H123: 3 | I123: 2 | J123: 12 | K123: 15 | L123: 0 | M123: 0 | N123: 0 | O123: 0
A124: 4 | B124: МБОУ Староильдеряковская сш” | C124: Посредникова Елена Александровна | D124: высш | E124: театр | F124: ХЭ | H124: 3 | I124: 1 | J124: 15 | K124: 15 | L124: 0 | M124: 0 | N124: 0 | O124: 0
A125: 5 | B125: МБОУ Староильдеряковская сш” | C125: Морозова Людмила Михайловна | D125: высш | E125: ЮИД | F125: СП | G125: 3 | H125: 1 | I125: 1 | J125: 15 | K125: 15 | L125: 0 | M125: 0 | N125: 0 | O125: 0
A126: 6 | B126: МБОУ Староильдеряковская сш” | C126: Карпова Наталья Валерьевна | D126: высш | E126: Умелые руки | F126: ТТ | G126: 3 | H126: 2 | I126: 3 | J126: 10 | K126: 15 | L126: 0 | M126: 0 | N126: 0 | O126: 0
I127: Всего | J127: =SUM(J121:J126) -> 72 | K127: =SUM(K121:K126) -> 90
A129: 1 | B129: МБОУ Емелькинская сош” | C129: Никитина Алексея Дмитриевича | D129: высш | E129: факел 1 группа | F129: ВП | G129: 3 | H129: 1 | I129: 3 | J129: 10 | K129: 15 | L129: 0 | M129: 0 | N129: 0 | O129: 0
A130: 2 | B130: МБОУ Емелькинская сош” | C130: Елисеева Евгения Дмитриевича | D130: высш | E130: волейбол | F130: ФС | G130: 2 | H130: 2 | I130: 2 | J130: 12 | K130: 15 | L130: 0 | M130: 0 | N130: 0 | O130: 0
A131: 3 | B131: МБОУ Емелькинская сош” | C131: Маркову Надежду Мироновну | D131: высш | E131: ЮИД | F131: СП | G131: 3 | H131: 2 | I131: 1 | J131: 15 | K131: 15 | L131: 0 | M131: 0 | N131: 0 | O131: 0
I132: Всего | J132: =SUM(J129:J131) -> 37 | K132: =SUM(K129:K131) -> 45
A134: 1 | B134: МБОУ Чувенорускинская сш” | C134: Сафиуллина Танзиля Закиулловна | D134: высш | E134: ЮИД | F134: СП | G134: 3 | H134: 1 | I134: 1 | J134: 15 | K134: 15 | L134: 0 | M134: 0 | N134: 0 | O134: 0
I135: Всего | J135: =SUM(J134:J134) -> 15 | K135: =SUM(K134:K134) -> 15
A137: 1 | B137: МБОУ “Староузеевская сош” | C137: Крмакова Александра Васильевича | D137: высш | E137: баскетбол | F137: ФС | G137: 3 | H137: 2 | I137: 3 | J137: 10 | K137: 15 | L137: 0 | M137: 0 | N137: 0 | O137: 0
A138: 2 | B138: МБОУ “Староузеевская сош” | C138: Львов Николай Демидович | D138: высш | E138: Юный техник | F138: ТТ | G138: 3 | H138: 2 | I138: 1 | J138: 15 | K138: 15 | L138: 0 | M138: 0 | N138: 0 | O138: 0
A139: 3 | B139: МБОУ “Староузеевская сош” | C139: Захарова Бориса Андреевича | D139: высш | E139: краеведение | F139: ТК | G139: 3 | H139: 1 | I139: 1 | J139: 15 | K139: 15 | L139: 0 | M139: 0 | N139: 0 | O139: 0
A140: 4 | B140: МБОУ “Староузеевская сош” | C140: Павлова Татьяна Петровна | E140: Соприкосновнение с прекрассным (театр) | F140: ХЭ | G140: 3 | H140: 1 | I140: 1 | J140: 15 | K140: 15 | L140: 0 | M140: 0 | N140: 0 | O140: 0
I141: Всего | J141: =SUM(J137:J140) -> 55 | K141: =SUM(K137:K140) -> 60
A143: 1 | B143: МБОУ Старокиязлинская сош” | C143: Абраров Равиль Нуризанович | D143: высш | E143: Волейбол | F143: ФС | G143: 3 | H143: 1 | I143: 1 | J143: 15 | K143: 15 | L143: 0 | M143: 0 | N143: 0 | O143: 0
A144: 2 | B144: МБОУ Старокиязлинская сош” | C144: Гильмутдинову Алсу Галимзяновну | D144: высш | E144: Компьютерный мир | F144: ТТ | G144: 3 | H144: 1 | I144: 1 | J144: 15 | K144: 15 | L144: 0 | M144: 0 | N144: 0 | O144: 0
I145: Всего | J145: =SUM(J143:J144) -> 30 | K145: =SUM(K143:K144) -> 30
A147: 1 | B147: МБОУ Савгачевская сош” | C147: Егоров Владимир Павлович | D147: высш | E147: гол.соловей | F147: ХЭ | G147: 3 | H147: 1 | I147: 2 | J147: 12 | K147: 15 | L147: 0 | M147: 0 | N147: 0 | O147: 0
A148: 2 | B148: МБОУ Савгачевская сош” | C148: Герасимова Галина Владимировна | D148: высш | E148: юный физик | F148: ЕН | G148: 2 | H148: 1 | I148: 2 | J148: 12 | K148: 15 | L148: 0 | M148: 0 | N148: 0 | O148: 0
A149: 3 | B149: МБОУ Савгачевская сош” | C149: Васильева Ольга Дмитриевна | D149: высш | E149: Волейбол | F149: ФС | G149: 3 | H149: 1 | I149: 3 | J149: 10 | K149: 15 | L149: 0 | M149: 0 | N149: 0 | O149: 0
A150: 4 | B150: МБОУ Савгачевская сош” | C150: Охотникова Анатолия Михайловича | D150: высш | E150: шашки, шахматы | F150: ФС | G150: 2 | H150: 1 | I150: 1 | J150: 15 | K150: 15 | L150: 0 | M150: 0 | N150: 0 | O150: 0
A151: 5 | B151: МБОУ Савгачевская сош” | C151: Васильев Леонид Федорович | D151: высш | E151: настольный теннис | F151: ФС | G151: 3 | H151: 1 | I151: 3 | J151: 10 | K151: 15 | L151: 0 | M151: 0 | N151: 0 | O151: 0
A152: 6 | B152: МБОУ Савгачевская сош” | C152: Васильев Леонид Федорович | D152: высш | E152: Хоккей | F152: ФС | G152: 2 | I152: 1 | J152: 15 | K152: 15 | L152: 0 | M152: 0 | N152: 0 | O152: 0
A153: 7 | B153: МБОУ Савгачевская сош” | C153: Романова Татьяна Петровна | D153: высш | E153: обыч.чув.народа | F153: СП | G153: 3 | H153: 1 | I153: 3 | J153: 10 | K153: 15 | L153: 0 | M153: 0 | N153: 0 | O153: 0
A154: 8 | B154: МБОУ Савгачевская сош” | C154: Романова Татьяна Петровна | D154: высш | E154: Краеведение | F154: ТК | G154: 1 | I154: 1 | J154: 15 | K154: 15 | L154: 0 | M154: 0 | N154: 0 | O154: 0
A155: 9 | B155: МБОУ Савгачевская сош” | C155: Николаева Анна Анатольевна | D155: высш | E155: ЮИД | F155: СП | G155: 3 | H155: 1 | I155: 1 | J155: 15 | K155: 15 | L155: 0 | M155: 0 | N155: 0 | O155: 0
A156: 10 | B156: МБОУ Савгачевская сош” | C156: Ишметова Галина Васильевна | D156: высш | E156: умелые руки(дев) | F156: ТТ | G156: 3 | H156: 1 | I156: 3 | J156: 10 | K156: 15 | L156: 0 | M156: 0 | N156: 0 | O156: 0
A157: 11 | B157: МБОУ Савгачевская сош” | C157: Дмитриева Ирина Витальевна | D157: высш | E157: Мастера творчества | F157: ТТ | G157: 3 | H157: 1 | I157: 3 | J157: 10 | K157: 15 | L157: 0 | M157: 0 | N157: 0 | O157: 0
I158: Всего | J158: =SUM(J147:J157) -> 134 | K158: =SUM(K147:K157) -> 165
A160: 1 | B160: МБОУ “Старосаврушсая | C160: Мельникова Галина Петровна | D160: высш | E160: Швейное дело | F160: ТТ | G160: 1 | H160: 1 | I160: 1 | J160: 15 | K160: 15 | L160: 0 | M160: 0 | N160: 0 | O160: 0
A161: 2 | B161: МБОУ “Старосаврушсая | C161: Козлова Агрепина Анатольевна | D161: высш | E161: ЮИД | F161: СП | G161: 3 | H161: 2 | I161: 1 | J161: 15 | K161: 15 | L161: 0 | M161: 0 | N161: 0 | O161: 0
I162: Всего | J162: =SUM(J160:J161) -> 30 | K162: =SUM(K160:K161) -> 30
A164: 1 | B164: МБОУ “Нижнетатмайская сош” | C164: Хайруллина Рузиля Адгамовна | D164: высш | E164: Театральный кружок | F164: ХЭ | G164: 5 | H164: 1 | I164: 1 | J164: =IF(I164=1,15,IF(I164=2,12,IF(I164=3,10))) -> 15 | K164: 15 | L164: 0 | M164: 0 | N164: 0 | O164: 0
A165: 2 | B165: МБОУ “Нижнетатмайская сош” | C165: Гафиятуллина Руфия Амировна | D165: высш | E165: ЮИД | F165: СП | G165: 3 | H165: 1 | I165: 1 | J165: 15 | K165: 15 | L165: 0 | M165: 0 | N165: 0 | O165: 0
A166: 3 | B166: МБОУ “Нижнетатмайская сош” | C166: Камалова Сирень Равильевна | D166: высш | E166: Национальная борьба | F166: ФС | G166: 1 | H166: 1 | I166: 1 | J166: 15 | K166: 15 | L166: 0 | M166: 0 | N166: 0 | O166: 0
I167: Всего | J167: =SUM(J164:J166) -> 45 | K167: =SUM(K164:K166) -> 45
A170: 1 | B170: МБОУ Нижнебаландинская нош/сад” | C170: Галлямова Ильсия Ильясовна | D170: высш | E170: ЮИД | F170: СП | G170: 3 | H170: 1 | I170: 1 | J170: 15 | K170: 15 | L170: 0 | M170: 0 | N170: 0 | O170: 0
I171: Всего | K171: 15
A174: 1 | B174: МБДОУ "Радуга” | C174: Ильина Ирина Виталиевна | D174: высш | E174: Легомастер | F174: ТТ | G174: 1 | H174: 1 | I174: 1 | J174: 15 | K174: 15 | L174: 0 | M174: 0 | N174: 0 | O174: 0
A175: 1 | B175: МБДОУ "Ляйсан” | C175: Лоскутова Ольга Владимировна | D175: высш | E175: Зеленый огонек | F175: СП | G175: 1 | H175: 1 | I175: 1 | J175: 15 | K175: 15 | L175: 0 | M175: 0 | N175: 0 | O175: 0
A176: 1 | B176: МБДОУ "Буратино” | C176: Нургатина Надежда Витальевна | D176: высш | E176: Творческая мастерская | F176: ХЭ | G176: 2 | H176: 1 | I176: 1 | J176: =IF(I176=1,15,IF(I176=2,12,IF(I176=3,10))) -> 15 | K176: 15 | L176: 0 | M176: 0 | N176: 0 | O176: 0
A177: 1 | B177: МБДОУ "Буратино” | C177: Хаматгатина Лилия Айратовна | D177: высш | E177: Шахматы | F177: ФС | G177: 1 | H177: 1 | I177: 1 | J177: 15 | K177: 15 | L177: 0 | M177: 0 | N177: 0 | O177: 0
A178: 1 | B178: МБДОУ "Солнышко” | C178: Хисамова Марина Лазаревна | D178: высш | E178: Веселый язычок | F178: СП | G178: 1 | H178: 1 | I178: 1 | J178: 15 | K178: 15 | L178: 0 | M178: 0 | N178: 0 | O178: 0
I179: Всего | J179: =SUM(J178:J178) -> 15 | K179: =SUM(K174:K178) -> 75
A181: 1 | B181: МБУ ДО ЦВР | C181: Вагапова Гулюса Равилевна | D181: высш | E181: Умелые ручки 1 группа | F181: ХЭ | G181: 3 | H181: 1 | I181: 2 | J181: 12 | K181: 15 | L181: 0 | M181: 0 | N181: 0 | O181: 0
A182: 2 | B182: МБУ ДО ЦВР | C182: Вагапова Гулюса Равилевна | D182: высш | E182: Умелые ручки 2 группа | F182: ХЭ | G182: 3 | H182: 1 | I182: 2 | J182: 12 | K182: 15 | L182: 0 | M182: 0 | N182: 0 | O182: 0
A183: 3 | B183: МБУ ДО ЦВР | C183: Вагапова Гулюса Равилевна | D183: высш | E183: Умелые ручки 3 группа | F183: ХЭ | G183: 3 | H183: 1 | I183: 2 | J183: 12 | K183: 15 | L183: 0 | M183: 0 | N183: 0 | O183: 0
I184: Всего | J184: =SUM(J181:J183) -> 36 | K184: =SUM(K181:K183) -> 45
A186: 1 | B186: МБУ ДО ЦВР | C186: Ярмухаметов Айрат Ильсурович | D186: ср/спец | E186: Картинг-клуб 1 группа | F186: ТТ | G186: 3 | H186: 2 | I186: 2 | J186: 12 | K186: 15 | L186: 0 | M186: 0 | N186: 0 | O186: 0
A187: 2 | B187: МБУ ДО ЦВР | C187: Ярмухаметов Айрат Ильсурович | D187: ср/спец | E187: Картинг-клуб 2 группа | F187: ТТ | G187: 3 | H187: 2 | I187: 2 | J187: 12 | K187: 15 | L187: 0 | M187: 0 | N187: 0 | O187: 0
A188: 3 | B188: МБУ ДО ЦВР | C188: Ярмухаметов Айрат Ильсурович | D188: ср/спец | E188: Картинг-клуб 3 группа | F188: ТТ | G188: 3 | H188: 2 | I188: 2 | J188: =IF(I188=1,15,IF(I188=2,12,IF(I188=3,10))) -> 12 | K188: 15 | L188: 0 | M188: 0 | N188: 0 | O188: 0
I189: Всего | J189: =SUM(J186:J188) -> 36 | K189: =SUM(K186:K188) -> 45

Sheet Лист2
A1: Столбец1
A2: техническая | D2: Групп | E2: Технич творч | F2: Естест-научн | G2: Физкуль-спорт | H2: Худож-эстет | I2: Туристко-краеведч | J2: Социально-педагогическое | K2: Эколого-биологическое | L2: Военно-патриотическое | M2: Всего
A3: естественно-научная | D3: 1 год обучения | E3: =COUNTIF(#REF!,"Т1") ->  | F3: =COUNTIF(#REF!,"Е1") ->  | G3: =COUNTIF(#REF!,"Ф1") ->  | H3: =COUNTIF(#REF!,"Х1") ->  | I3: =COUNTIF(#REF!,"ТК1") ->  | J3: =COUNTIF(#REF!,"СП1") ->  | K3: =COUNTIF(#REF!,"ЭБ1") ->  | L3: =COUNTIF(#REF!,"ВП1") ->  | M3: =SUM(E3:L3) -> 
A4: физкультурно-спортивная | D4: 2 год обучения | E4: =COUNTIF(#REF!,"Т2") ->  | F4: =COUNTIF(#REF!,"Е2") ->  | G4: =COUNTIF(#REF!,"Ф2") ->  | H4: =COUNTIF(#REF!,"Х2") ->  | I4: =COUNTIF(#REF!,"ТК2") ->  | J4: =COUNTIF(#REF!,"СП2") ->  | K4: =COUNTIF(#REF!,"ЭБ2") ->  | L4: =COUNTIF(#REF!,"ВП2") ->  | M4: =SUM(E4:L4) -> 
A5: художественная | D5: 3 год обучения | E5: =COUNTIF(#REF!,"Т3") ->  | F5: =COUNTIF(#REF!,"Е3") ->  | G5: =COUNTIF(#REF!,"Ф3") ->  | H5: =COUNTIF(#REF!,"Х3") ->  | I5: =COUNTIF(#REF!,"ТК3") ->  | J5: =COUNTIF(#REF!,"СП3") ->  | K5: =COUNTIF(#REF!,"ЭБ3") ->  | L5: =COUNTIF(#REF!,"ВП3") ->  | M5: =SUM(E5:L5) -> 
A6: туристко-краеведческая | D6: Итого | E6: =SUM(E3:E5) ->  | M6: =SUM(E6:L6) -> 
A7: социально-педагогическая

Sheet Лист3
A1: Юный Архимед | B1: СП
A2: Волейбол | B2: ФС
A3: Шиповка юных | B3: ФС
A4: Краеведение | B4: ТК
A5: Юный умелец | B5: ТТ
A6: Автомоделирование | B6: ТТ
A7: Юный изобретатель | B7: ТТ
A8: Волейбол | B8: ФС
A9: Эврика | B9: ЕН
A10: Юный химик | B10: ЕН
A11: Краеведение | B11: ТК
A12: Юный грамотей | B12: СП
A13: Туризм | B13: ТК
A14: Клуб Пифагора | B14: СП
A15: ЮИД | B15: СП
A16: Страна мастериц | B16: ТТ
A17: Тайна родного края | B17: ТК
A18: Волейбол | B18: ФС
A19: Умелые ручки | B19: ХЭ
A20: Баскетбол | B20: ФС
A21: В мире языков | B21: СП
A22: Умелые руки | B22: ТТ
A23: Волейбол | B23: ФС
A24: Арлекино | B24: ХЭ
A25: Сыны Отечества | B25: ВП
A26: Умелые руки | B26: ХЭ
A27: Баскетбол | B27: ФС
A28: Сандугачкай 2 группы | B28: ХЭ
A29: В мире научных открытий | B29: СП
A30: Автодело | B30: ТТ
A31: Умка | B31: СП
A32: Рукодельница | B32: ХЭ
A33: ЮИД | B33: СП
A34: Бадминтон | B34: ФС
A35: Умелые руки | B35: ХЭ
A36: Робототехника | B36: ТТ
A37: Баскетбол | B37: ФС
A38: Юный спасатель | B38: ВП
A39: Занимательный английский | B39: СП
A40: Автомоделирование | B40: ТТ
A41: Автодело | B41: ТТ
A42: Лыжные гонки | B42: ФС
A43: Художественный дизайн | B43: ХЭ
A44: Юннат | B44: ЭБ
A45: Баскетбол | B45: ФС
A46: Клио | B46: СП
A47: Прикладное искусство 2 группы | B47: ТТ
A48: Автодело 2 группы | B48: ТТ
A49: Бадминтон | B49: ФС
A50: Баскетбол | B50: ФС
A51: В мире английского языка | B51: СП
A52: В мире ярких краскок | B52: ХЭ
A53: Веселые краски | B53: ХЭ
A54: Экологическая азбука | B54: ЭБ
A55: Секреты текстосложения | B55: СП
A56: Край родной мой | B56: ТК
A57: Юный физик | B57: ЕН
A58: Экологический | B58: ЭБ
A59: Юный патриот | B59: ВП
A60: Умелые руки | B60: ТТ
A61: Юный натуралист | B61: ЭБ
A62: Эрудит(матем) | B62: СП
A63: Калейдоскоп (психология) | B63: СП
A64: Народная жемчужина | B64: СП
A65: Робототехника | B65: ТТ
A66: Разноцветный английский | B66: СП
A67: Шашки, шахматы | B67: ФС
A68: Шахматы | B68: ФС
A69: Мир языков(тат.язык) | B69: СП
A70: Баскетбол | B70: ФС
A71: Настольный теннис | B71: ФС
A72: Клио | B72: СП
A73: Память | B73: СП
A74: Веселые нотки | B74: ХЭ
A75: Абитуриент (рус.яз) | B75: СП
A76: Юный физик | B76: ЕН
A77: Логомир | B77: ТТ
A78: Умелые руки | B78: ТТ
A79: Интеллектуал | B79: ЭБ
A80: Ритмика и танец | B80: ХЭ
A81: Эрудит | B81: СП
A82: Фантазия | B82: ХЭ
A83: Бадминтон | B83: ФС
A84: Белая ладья | B84: ФС
A85: Волейбол | B85: ФС
A86: Волейбол | B86: ФС
A87: Город мастеров | B87: ХЭ
A88: Ориент | B88: ВП
A89: Юный натуралист | B89: ЭБ
A90: Живое перо | B90: СП
A91: Автодело | B91: ТТ
A92: ЮИД | B92: СП
A93: Шахматы | B93: ФС
A94: Хатер (память) | B94: ТК
A95: Умелые руки | B95: ТТ
A96: Туризм | B96: ТК
A97: Умелые руки | B97: ТТ
A98: Краеведение | B98: ТК
A99: ЮИД | B99: СП
A100: Лингвист | B100: СП
A101: Я и компьютер | B101: ТТ
A102: факел 1 группа | B102: ВП
A103: Свирелька | B103: ХЭ
A104: Волейбол | B104: ФС
A105: Умелые руки | B105: ХЭ
A106: Мастерок | B106: ТТ
A107: Пегас | B107: СП
A108: Баскетбол | B108: ФС
A109: Юный техник | B109: ТТ
A110: краеведение | B110: ТК
A111: Юные таланты | B111: ХЭ
A112: Волейбол | B112: ФС
A113: Компьютерный мир | B113: ТТ
A114: Голосистый соловей | B114: ХЭ
A115: Мастерок 2 группы | B115: ТТ
A116: Юный физик | B116: ЕН
A117: Волейбол | B117: ФС
A118: Шашки, шахматы | B118: ФС
A119: Юный программист | B119: ТТ
A120: Настольный теннис | B120: ФС
A121: Обычаи чувашского народа | B121: СП
A122: Занимательная математика | B122: СП
A123: Умелые руки | B123: ТТ
A124: Мастера творчества | B124: ТТ
A125: Юный пользователь | B125: ТТ
A126: Эскиз | B126: ХЭ
A127: Умелые руки | B127: ХЭ
A128: Эрудит (матем) | B128: СП
A129: Национальная борьба | B129: ФС
A130: В мире английского языка | B130: СП
A131: Легомастер | B131: ТТ
A132: Подружись с английским | B132: СП
A133: Волшебный квадратик | B133: ХЭ
A134: Веселый язычок | B134: СП
A135: Умелые ручки 3 группы | B135: ХЭ
A136: Картинг-клуб 3 группы | B136: ТТ
